bitfinex/quotes_SOLUSD_20250912
["timestamp","ask_amount","ask_price","bid_price","bid_amount"]
[1757643686299,0.68,233.26,233.23,19.74]
[1757643686898,0.68,233.25,233.23,19.74]
[1757643687095,3.87644097,233.25,233.23,19.74]
[1757643687323,0.68,233.25,233.23,19.77]
[1757643687528,3.19740388,233.25,233.23,19.77]
[1757643688829,8.16435965,233.27,233.23,19.77]
[1757643689011,3.19740388,233.26,233.23,19.77]
[1757643689724,0.06,233.31,233.24,0.66]
[1757643690702,0.06,233.31,233.24,3.66117558]
[1757643691022,0.06,233.31,233.25,0.66]
[1757643692003,0.0171303,233.31,233.25,0.66]
[1757643692702,0.0171303,233.31,233.25,3.66097191]
[1757643693129,0.0171303,233.31,233.26,0.66]
[1757643693609,0.0171303,233.31,233.27,0.66]
[1757643693819,3.21438186,233.31,233.27,0.66]
[1757643694005,3.19725156,233.3,233.28,0.66]
[1757643694627,0.0171303,233.31,233.28,0.66]
[1757643695129,3.21438186,233.31,233.28,0.66]
[1757643695424,3.19725156,233.3,233.28,0.66]
[1757643695625,0.0171303,233.31,233.29,0.66]
[1757643695931,0.0171303,233.31,233.3,33.9]
[1757643696431,0.0171303,233.31,233.3,34.56]
[1757643696800,3.21495308,233.31,233.3,33.9]
[1757643697232,0.0171303,233.31,233.3,33.9]
[1757643698526,0.0171303,233.31,233.3,34.56]
[1757643698924,3.21495308,233.31,233.3,34.56]
[1757643699127,0.0171303,233.31,233.3,34.56]
[1757643699529,3.21495308,233.31,233.3,34.56]
[1757643699724,0.0171303,233.31,233.3,37.56042863]
[1757643700346,3.21495308,233.31,233.3,34.56]
[1757643700526,0.0171303,233.31,233.3,34.56]
[1757643700731,0.0171303,233.31,233.3,51.15602264]
[1757643702544,0.06,233.34,233.33,26.0]
[1757643702927,0.06,233.34,233.33,26.66]
[1757643703736,0.06,233.34,233.33,29.66004285]
[1757643704527,0.06,233.34,233.33,63.52004285]
[1757643706353,0.06,233.34,233.33,63.48004285]
[1757643707551,0.06,233.34,233.33,77.07563686]
[1757643710028,0.06,233.37,233.33,84.575744]
[1757643710228,0.06,233.37,233.36,26.0]
[1757643710434,0.06,233.37,233.34,0.66]
[1757643710636,0.06,233.37,233.34,3.65983968]
[1757643710831,0.06,233.37,233.35,33.84]
[1757643711436,0.06,233.37,233.36,33.84]
[1757643712663,0.74,233.37,233.36,33.84]
[1757643713036,0.74,233.37,233.34,26.0]
[1757643713236,0.06,233.37,233.35,33.82]
[1757643713435,0.06,233.37,233.35,34.48]
[1757643713635,0.06,233.37,233.35,33.82]
[1757643714256,0.06,233.37,233.35,34.48]
[1757643717266,0.06,233.37,233.35,33.82]
[1757643718664,0.06,233.37,233.35,36.81977212]
[1757643718843,0.06,233.37,233.35,33.82]
[1757643719654,0.06,233.37,233.35,37.51976119]
[1757643720260,0.06,233.37,233.35,36.81976119]
[1757643721150,0.06,233.37,233.36,0.7]
[1757643721357,0.06,233.37,233.36,14.29559401]
[1757643722493,0.06,233.37,233.36,33.74]
[1757643723959,0.06,233.37,233.36,59.74]
[1757643725092,0.76,233.37,233.31,0.03]
[1757643725253,3.08291831,233.36,233.31,0.03]
[1757643725574,0.06,233.37,233.32,31.0]
[1757643725772,0.06,233.37,233.33,0.7]
[1757643726071,0.06,233.37,233.34,34.46]
[1757643726971,0.06,233.37,233.34,36.75988868]
[1757643727362,0.06,233.37,233.34,37.45988868]
[1757643727880,0.06,233.37,233.34,36.75988868]
[1757643728779,0.06,233.37,233.36,26.0]
[1757643728975,0.06,233.37,233.36,59.76]
[1757643730270,0.06,233.37,233.36,62.75965718]
[1757643730468,0.06,233.37,233.36,77.05525119]
[1757643731874,0.06,233.37,233.36,63.45965718]
[1757643733297,0.06,233.37,233.36,63.43965718]
[1757643734095,0.06,233.37,233.36,77.03525119]
[1757643740600,0.06,233.37,233.36,28.99965718]
[1757643740908,0.06,233.37,233.36,36.73965718]
[1757643741102,0.06,233.37,233.36,51.03525119]
[1757643744390,0.06,233.37,233.36,50.33525119]
[1757643744897,0.06,233.37,233.36,26.0]
[1757643745107,0.76,233.37,233.36,59.74]
[1757643745680,0.76,233.37,233.36,26.0]
[1757643745895,0.76,233.37,233.36,59.74]
[1757643746701,0.76,233.37,233.36,62.73965718]
[1757643747004,3.59121567,233.56,233.44,26.0]
[1757643747181,4.807348,233.59,233.41,13.59559401]
[1757643747182,0.7,233.51,233.48,26.0]
[1757643747382,0.7,233.5,233.49,33.74]
[1757643747995,0.7,233.56,233.49,34.41]
[1757643748198,3.19530293,233.56,233.53,26.0]
[1757643748399,0.7,233.59,233.54,33.74]
[1757643748607,0.7,233.58,233.54,33.74]
[1757643748811,0.7,233.57,233.54,33.74]
[1757643749008,0.7,233.56,233.55,33.76]
[1757643749306,0.7,233.58,233.55,33.78]
[1757643749512,0.7,233.57,233.55,33.78]
[1757643749707,0.7,233.56,233.55,33.78]
[1757643750508,3.19025734,233.62,233.55,33.78]
[1757643750706,0.7,233.61,233.55,33.78]
[1757643752116,79.6,233.63,233.59,26.0]
[1757643752420,0.7,233.62,233.6,33.82]
[1757643752594,0.7,233.64,233.61,33.82]
[1757643752792,0.7,233.63,233.61,33.82]
[1757643753024,0.7,233.62,233.48,7.49523851]
[1757643753213,0.7,233.61,233.51,0.67]
[1757643753388,3.08291831,233.6,233.52,33.84]
[1757643753585,0.7,233.59,233.53,33.84]
[1757643753785,3.08291831,233.62,233.51,13.59559401]
[1757643754021,0.7,233.58,233.48,13.59559401]
[1757643754225,0.7,233.57,233.52,26.0]
[1757643754521,0.7,233.56,233.53,33.86]
[1757643754826,0.7,233.55,233.53,33.86]
[1757643756019,0.7,233.54,233.47,3.66815253]
[1757643756223,0.7,233.54,233.48,33.86]
[1757643757199,0.7,233.54,233.48,36.85802869]
[1757643758234,0.7,233.54,233.48,33.86]
[1757643758536,0.7,233.54,233.49,33.84]
[1757643758914,0.7,233.53,233.48,26.0]
[1757643759314,0.7,233.53,233.49,33.82]
[1757643762642,0.7,233.56,233.49,34.49]
[1757643762851,0.7,233.55,233.49,33.82]
[1757643763846,1.96967552,233.56,233.46,28.99825916]
[1757643764054,0.7,233.54,233.47,33.76]
[1757643764263,0.7,233.56,233.48,0.67]
[1757643766857,79.6,233.55,233.47,33.76]
[1757643767055,0.7,233.54,233.47,33.76]
[1757643767542,0.7,233.53,233.47,33.76]
[1757643767849,83.8817793,233.55,233.45,0.67]
[1757643768052,0.7,233.52,233.48,33.74]
[1757643768238,0.7,233.51,233.48,33.74]
[1757643768650,0.7,233.5,233.48,33.74]
[1757643768854,0.7,233.52,233.48,33.74]
[1757643769047,0.7,233.51,233.45,0.67]
[1757643769241,0.7,233.51,233.46,33.74]
[1757643769555,0.7,233.5,233.46,33.74]
[1757643770543,0.7,233.49,233.43,26.67]
[1757643770746,0.7,233.49,233.44,33.74]
[1757643771157,0.7,233.48,233.44,33.74]
[1757643771358,4.28249945,233.51,233.44,33.74]
[1757643771572,0.7,233.5,233.44,0.67]
[1757643771743,0.7,233.5,233.45,33.74]
[1757643772258,0.7,233.5,233.45,34.41]
[1757643772573,2.66967552,233.53,233.46,0.67]
[1757643772746,0.7,233.53,233.46,0.67]
[1757643774444,0.7,233.53,233.45,33.74]
[1757643774445,4.98211115,233.53,233.45,33.74]
[1757643774780,2.67967552,233.52,233.45,33.74]
[1757643775362,0.71,233.52,233.45,33.74]
[1757643775560,6.25178667,233.53,233.45,33.74]
[1757643775766,0.71,233.51,233.45,33.74]
[1757643776156,0.71,233.5,233.46,33.74]
[1757643776950,79.6,233.52,233.46,34.44]
[1757643776951,82.27967552,233.52,233.46,34.44]
[1757643777149,80.31,233.52,233.46,34.44]
[1757643777582,79.6,233.52,233.46,34.44]
[1757643777885,79.6,233.52,233.47,0.7]
[1757643778089,79.6,233.52,233.48,0.7]
[1757643780803,0.06,233.61,233.53,26.0]
[1757643780968,0.06,233.61,233.54,44.93070822]
[1757643781293,0.06,233.56,233.55,33.74]
[1757643781476,0.06,233.56,233.55,34.44]
[1757643782298,0.06,233.56,233.55,48.03559401]
[1757643783121,0.06,233.61,233.55,48.03559401]
[1757643783122,0.06,233.61,233.58,26.0]
[1757643783281,0.06,233.61,233.59,33.72]
[1757643783472,0.06,233.61,233.59,34.42]
[1757643783675,3.18715232,233.69,233.6,0.7]
[1757643783894,0.71,233.68,233.6,0.7]
[1757643784410,0.71,233.68,233.61,33.72]
[1757643784782,0.71,233.68,233.62,33.72]
[1757643785593,0.71,233.67,233.63,33.72]
[1757643785795,0.71,233.66,233.63,33.72]
[1757643786000,80.31,233.66,233.63,33.72]
[1757643786307,80.31,233.66,233.6,0.7]
[1757643786509,79.6,233.66,233.61,33.72]
[1757643786819,79.6,233.66,233.62,0.7]
[1757643786978,79.6,233.66,233.63,0.7]
[1757643787179,79.6,233.66,233.61,36.71632519]
[1757643787374,79.6,233.66,233.62,0.7]
[1757643788104,79.6,233.66,233.63,0.7]
[1757643790009,79.6,233.66,233.64,0.7]
[1757643790211,79.6,233.66,233.65,33.72]
[1757643792710,79.6,233.72,233.62,0.7]
[1757643792878,5.15431984,233.71,233.63,33.72]
[1757643793083,0.71,233.7,233.64,33.72]
[1757643793395,0.71,233.7,233.65,33.72]
[1757643793708,0.71,233.69,233.65,33.72]
[1757643793875,0.71,233.68,233.65,33.72]
[1757643794893,0.71,233.7,233.66,33.72]
[1757643795192,2.67967552,233.69,233.53,5.35251384]
[1757643795392,1.96967552,233.67,233.57,0.7]
[1757643795579,0.71,233.68,233.57,0.7]
[1757643795781,0.71,233.71,233.6,39.59559401]
[1757643795980,4.27807537,233.75,233.64,26.0]
[1757643796179,3.89263345,233.74,233.65,0.7]
[1757643796397,3.89263345,233.74,233.66,33.72]
[1757643796586,0.71,233.73,233.66,33.72]
[1757643796787,0.71,233.72,233.65,0.7]
[1757643797181,1.96967552,233.67,233.66,33.72]
[1757643797383,2.67967552,233.67,233.54,3.85271599]
[1757643797695,1.96967552,233.63,233.55,0.7]
[1757643797896,1.96967552,233.61,233.56,13.08]
[1757643798104,0.71,233.6,233.56,13.08]
[1757643798403,0.71,233.59,233.56,13.08]
[1757643798907,0.71,233.58,233.53,0.7]
[1757643799093,0.71,233.58,233.57,33.7]
[1757643799289,0.71,233.66,233.57,34.4]
[1757643799491,0.71,233.69,233.58,0.7]
[1757643800001,0.71,233.69,233.6,26.0]
[1757643800203,0.71,233.72,233.61,0.7]
[1757643800505,0.71,233.72,233.62,33.72]
[1757643800802,0.71,233.72,233.63,0.7]
[1757643800996,0.71,233.71,233.64,33.72]
[1757643801685,0.71,233.71,233.65,33.72]
[1757643801686,1.96967552,233.69,233.65,33.72]
[1757643801883,2.67967552,233.68,233.6,26.7]
[1757643802101,1.96967552,233.68,233.61,33.72]
[1757643802305,4.97870046,233.65,233.62,33.72]
[1757643802513,0.71,233.64,233.63,33.72]
[1757643803089,0.71,233.64,233.57,0.7]
[1757643803405,0.71,233.64,233.56,26.03]
[1757643803406,5.68870046,233.64,233.56,0.03]
[1757643803614,5.68870046,233.64,233.57,33.72]
[1757643803791,0.71,233.63,233.57,33.72]
[1757643804108,5.68870046,233.63,233.56,0.03]
[1757643804308,4.97870046,233.61,233.57,33.72]
[1757643804612,0.71,233.6,233.56,0.03]
[1757643804797,0.71,233.6,233.57,33.74]
[1757643804798,5.68870046,233.6,233.57,33.74]
[1757643805001,0.72,233.59,233.56,0.03]
[1757643805195,0.72,233.59,233.57,33.74]
[1757643805495,0.72,233.62,233.57,33.74]
[1757643805694,4.28041378,233.63,233.57,33.74]
[1757643805894,0.72,233.61,233.57,33.74]
[1757643806199,0.72,233.65,233.58,0.69]
[1757643806710,4.97870046,233.69,233.58,0.69]
[1757643806900,0.72,233.67,233.58,0.69]
[1757643807098,0.72,233.68,233.6,26.0]
[1757643807304,80.32,233.7,233.61,0.69]
[1757643807500,84.59907462,233.7,233.61,0.69]
[1757643809001,80.32,233.7,233.61,0.69]
[1757643809198,80.32,233.7,233.62,33.76]
[1757643809407,0.72,233.7,233.63,0.69]
[1757643809609,0.72,233.7,233.62,33.76]
[1757643809819,0.72,233.69,233.62,33.76]
[1757643810120,4.97870046,233.63,233.56,0.03]
[1757643810414,4.97870046,233.57,233.56,0.03]
[1757643810797,0.72,233.57,233.56,0.03]
[1757643811312,0.72,233.64,233.56,0.72]
[1757643812322,0.72,233.66,233.56,0.72]
[1757643812618,4.99975536,233.66,233.56,0.72]
[1757643812994,4.97870046,233.65,233.56,0.72]
[1757643813196,4.97870046,233.64,233.57,33.84]
[1757643813394,4.97870046,233.61,233.57,33.84]
[1757643813623,0.72,233.6,233.57,33.84]
[1757643813800,0.72,233.59,233.57,33.84]
[1757643814002,5.69870046,233.61,233.57,33.84]
[1757643814220,0.72,233.6,233.57,33.84]
[1757643814930,31.69870046,233.59,233.56,0.03]
[1757643815129,21.75725076,233.58,233.56,0.03]
[1757643815298,21.75752301,233.57,233.56,0.03]
[1757643815493,22.47752301,233.57,233.56,0.03]
[1757643816121,19.29429447,233.57,233.56,0.03]
[1757643816438,22.47791039,233.57,233.56,0.03]
[1757643816804,26.75928214,233.57,233.56,0.03]
[1757643817311,26.75896162,233.57,233.56,0.03]
[1757643817514,39.59559401,233.53,233.38,0.69]
[1757643817724,4.97870046,233.46,233.39,1.38]
[1757643817910,5.69870046,233.46,233.39,1.38]
[1757643818630,0.72,233.5,233.4,0.69]
[1757643818799,9.26153912,233.49,233.4,0.69]
[1757643819000,4.28283866,233.49,233.4,0.69]
[1757643820114,5.69870046,233.48,233.4,0.69]
[1757643820438,0.72,233.48,233.4,0.69]
[1757643821025,0.72,233.48,233.4,26.69]
[1757643821226,5.00250004,233.51,233.41,0.69]
[1757643822118,7.49025069,233.49,233.39,27.38]
[1757643822325,11.77345624,233.47,233.39,27.38]
[1757643822533,0.72,233.46,233.39,27.38]
[1757643822741,0.72,233.46,233.39,1.38]
[1757643823026,0.72,233.46,233.39,27.38]
[1757643823428,0.72,233.49,233.4,0.69]
[1757643823607,5.00247184,233.51,233.4,0.69]
[1757643823930,212.4,233.5,233.4,0.69]
[1757643824126,79.6,233.49,233.4,0.69]
[1757643824426,79.6,233.49,233.4,2.83221348]
[1757643824617,79.6,233.49,233.4,2.14221348]
[1757643824820,79.6,233.49,233.41,0.69]
[1757643825725,79.6,233.48,233.41,0.69]
[1757643825928,7.49025069,233.46,233.41,33.92]
[1757643826115,0.72,233.45,233.41,33.92]
[1757643826515,0.72,233.44,233.41,33.92]
[1757643826725,7.49025069,233.47,233.41,33.92]
[1757643826726,0.72,233.43,233.41,33.92]
[1757643827245,94.59063562,233.48,233.37,0.03]
[1757643827246,0.72,233.42,233.37,0.03]
[1757643827446,8.21025069,233.42,233.37,0.03]
[1757643827838,4.28430658,233.41,233.37,0.03]
[1757643828311,0.72,233.4,233.37,0.03]
[1757643828917,7.49025069,233.39,233.37,0.03]
[1757643829121,26.0,233.44,233.37,0.03]
[1757643829430,0.72,233.45,233.38,0.69]
[1757643829620,0.72,233.45,233.37,0.03]
[1757643830232,5.00362495,233.45,233.37,0.03]
[1757643831046,12.49387564,233.45,233.37,0.03]
[1757643831544,12.49387564,233.45,233.38,34.0]
[1757643831716,0.72,233.44,233.38,34.0]
[1757643831917,0.72,233.43,233.38,34.0]
[1757643832116,0.72,233.42,233.38,34.0]
[1757643832421,0.72,233.41,233.38,34.0]
[1757643832630,0.72,233.4,233.38,34.0]
[1757643834326,0.72,233.39,233.38,34.0]
[1757643834932,0.72,233.39,233.38,33.96]
[1757643835921,0.72,233.39,233.37,0.03]
[1757643836123,87.09025069,233.42,233.37,0.03]
[1757643836340,0.67,233.41,233.37,0.03]
[1757643836647,79.6,233.42,233.37,0.03]
[1757643836847,80.27,233.42,233.37,0.03]
[1757643837729,79.6,233.42,233.37,0.03]
[1757643838051,0.67,233.41,233.37,0.03]
[1757643838352,0.67,233.4,233.37,0.03]
[1757643839020,0.67,233.4,233.38,0.03]
[1757643839528,0.67,233.39,233.38,0.03]
[1757643842746,4.95467372,233.39,233.38,0.03]
[1757643842946,137.75467372,233.39,233.38,0.03]
[1757643843145,133.47,233.39,233.38,0.03]
[1757643843461,137.75467372,233.39,233.38,0.03]
[1757643844149,7.49025069,233.42,233.38,0.03]
[1757643844150,0.67,233.42,233.38,0.03]
[1757643844336,26.0,233.43,233.38,0.03]
[1757643844540,0.67,233.43,233.38,0.03]
[1757643844738,0.67,233.43,233.38,0.72]
[1757643845254,0.67,233.42,233.38,0.03]
[1757643846456,0.67,233.41,233.38,0.03]
[1757643846626,26.0,233.47,233.39,0.69]
[1757643846627,0.67,233.47,233.39,0.69]
[1757643849359,79.6,233.46,233.39,2.83232059]
[1757643849528,79.6,233.46,233.4,0.69]
[1757643850050,79.6,233.46,233.42,26.0]
[1757643850226,79.6,233.46,233.43,34.61]
[1757643850426,79.6,233.46,233.44,0.69]
[1757643850650,0.67,233.51,233.44,0.69]
[1757643851122,0.67,233.51,233.45,33.92]
[1757643852048,79.66,233.53,233.46,0.69]
[1757643852836,80.33,233.53,233.46,0.69]
[1757643853352,79.66,233.53,233.46,2.83169254]
[1757643853856,79.66,233.53,233.47,0.69]
[1757643854850,79.66,233.53,233.48,28.14151105]
[1757643855057,79.66,233.53,233.49,26.69]
[1757643855234,0.06,233.53,233.5,0.69]
[1757643855964,0.06,233.53,233.51,0.69]
[1757643856261,0.73,233.53,233.52,33.88]
[1757643856461,0.06,233.53,233.52,33.88]
[1757643856837,0.73,233.53,233.52,33.88]
[1757643857940,0.73,233.53,233.46,2.83167699]
[1757643857941,0.73,233.53,233.46,28.14167699]
[1757643858146,0.67,233.52,233.47,33.86]
[1757643858460,0.06,233.53,233.47,33.86]
[1757643858461,80.27,233.51,233.47,33.86]
[1757643858766,0.67,233.5,233.47,33.86]
[1757643859365,79.6,233.51,233.47,33.86]
[1757643859953,80.27,233.51,233.47,33.86]
[1757643861661,79.6,233.51,233.48,0.69]
[1757643861864,79.6,233.51,233.5,26.0]
[1757643862069,79.6,233.51,233.5,26.69]
[1757643862264,79.6,233.51,233.5,28.83132762]
[1757643865266,80.29,233.51,233.44,2.14187799]
[1757643865447,80.29,233.51,233.45,33.84]
[1757643865763,80.29,233.51,233.45,35.98177691]
[1757643866359,79.6,233.51,233.46,0.67]
[1757643866753,80.29,233.51,233.46,0.67]
[1757643867344,0.69,233.5,233.45,33.84]
[1757643867545,0.69,233.49,233.43,26.67]
[1757643867747,0.69,233.49,233.44,33.82]
[1757643867959,0.69,233.49,233.44,35.96187629]
[1757643868176,0.69,233.49,233.44,2.81187629]
[1757643868552,0.69,233.48,233.45,33.8]
[1757643868750,79.6,233.51,233.46,0.67]
[1757643868956,79.6,233.51,233.47,0.67]
[1757643869156,79.6,233.51,233.48,0.67]
[1757643869655,79.6,233.51,233.46,2.1416945]
[1757643869864,0.69,233.5,233.46,2.1416945]
[1757643870179,79.6,233.51,233.46,2.8116945]
[1757643870756,79.6,233.51,233.47,0.67]
[1757643870963,79.6,233.51,233.48,26.67]
[1757643871165,0.06,233.53,233.48,26.67]
[1757643871374,0.75,233.53,233.48,26.67]
[1757643871560,0.75,233.53,233.47,26.0]
[1757643871766,0.69,233.52,233.49,33.8]
[1757643871974,0.06,233.53,233.49,35.94140763]
[1757643872176,0.06,233.53,233.49,36.61140763]
[1757643872385,0.75,233.53,233.49,33.8]
[1757643873482,0.69,233.52,233.49,33.8]
[1757643873679,0.69,233.51,233.5,33.78]
[1757643874189,0.69,233.51,233.46,26.0]
[1757643874487,0.69,233.5,233.47,33.78]
[1757643875365,0.69,233.49,233.47,33.78]
[1757643876468,4.34213507,233.53,233.38,0.03]
[1757643876469,0.69,233.48,233.38,0.03]
[1757643876658,0.69,233.48,233.39,33.78]
[1757643876978,7.49025069,233.51,233.4,0.67]
[1757643877184,14.98818729,233.52,233.4,0.67]
[1757643877185,0.69,233.47,233.4,0.67]
[1757643877662,0.69,233.47,233.39,33.78]
[1757643877859,0.69,233.46,233.39,35.92229009]
[1757643878058,0.69,233.46,233.39,36.59229009]
[1757643878587,0.69,233.46,233.44,0.03]
[1757643878767,0.69,233.46,233.45,33.78]
[1757643879658,79.6,233.48,233.45,33.78]
[1757643879890,80.29,233.48,233.45,33.78]
[1757643880075,0.69,233.47,233.45,33.78]
[1757643881376,0.69,233.46,233.45,33.78]
[1757643882171,4.97338901,233.46,233.45,33.76]
[1757643882469,9.96000363,233.46,233.44,0.03]
[1757643882670,9.96000363,233.46,233.44,33.79]
[1757643882871,0.69,233.45,233.44,33.79]
[1757643883265,4.97357249,233.45,233.44,33.79]
[1757643883467,4.97357249,233.45,233.44,0.03]
[1757643883796,4.97357249,233.45,233.44,33.29]
[1757643884090,9.96018711,233.45,233.44,33.29]
[1757643884686,4.97357249,233.45,233.44,33.29]
[1757643884891,0.69,233.45,233.44,33.29]
[1757643885575,4.97357249,233.45,233.44,33.29]
[1757643886088,9.96018711,233.45,233.44,33.29]
[1757643886391,4.97357249,233.45,233.44,33.29]
[1757643887387,17.87953352,233.43,233.42,0.03]
[1757643887570,22.86614814,233.43,233.42,0.03]
[1757643887766,18.56953352,233.43,233.42,0.03]
[1757643888088,23.55614814,233.43,233.42,0.03]
[1757643888472,20.5416938,233.43,233.42,0.03]
[1757643890705,23.73065169,233.43,233.42,0.03]
[1757643891284,20.5416938,233.43,233.42,0.03]
[1757643891865,23.73036731,233.43,233.42,0.03]
[1757643892296,20.5416938,233.43,233.42,0.03]
[1757643892596,23.72959054,233.43,233.42,0.03]
[1757643892772,39.59559401,233.39,233.33,0.03]
[1757643892971,39.59559401,233.35,233.23,0.03]
[1757643893298,41.56775429,233.32,233.23,0.03]
[1757643893480,42.78412745,233.32,233.23,0.03]
[1757643893685,19.44628773,233.32,233.23,0.03]
[1757643894294,22.46841891,233.32,233.23,0.03]
[1757643894468,26.7543781,233.32,233.23,0.03]
[1757643894669,21.76008664,233.32,233.23,0.03]
[1757643894875,26.7543781,233.32,233.23,0.03]
[1757643895094,40.28559401,233.32,233.23,0.03]
[1757643895286,45.27988547,233.32,233.26,0.69]
[1757643895780,45.27988547,233.32,233.24,0.69]
[1757643896971,45.27988547,233.32,233.26,0.03]
[1757643898069,19.27988547,233.32,233.26,0.03]
[1757643898273,53.07988547,233.32,233.26,0.03]
[1757643899501,19.27988547,233.32,233.26,0.03]
[1757643899886,53.07988547,233.32,233.26,0.03]
[1757643900192,48.08559401,233.32,233.26,0.03]
[1757643900390,53.07988547,233.32,233.26,0.03]
[1757643901191,55.93205719,233.32,233.26,0.03]
[1757643901375,50.93776573,233.32,233.26,0.03]
[1757643901575,55.93205719,233.32,233.26,0.03]
[1757643902197,22.13205719,233.32,233.26,0.03]
[1757643902504,55.93205719,233.32,233.26,0.03]
[1757643904608,50.93776573,233.32,233.26,0.03]
[1757643904796,55.93205719,233.32,233.26,0.03]
[1757643905190,13.59559401,233.3,233.29,1e-08]
[1757643905491,52.38988547,233.3,233.29,1e-08]
[1757643905789,55.92205719,233.3,233.29,1e-08]
[1757643906710,68.77205719,233.3,233.29,1e-08]
[1757643906892,50.92776573,233.3,233.29,1e-08]
[1757643907100,78.81999999,233.24,233.23,0.03]
[1757643908995,97.40988546,233.24,233.23,0.03]
[1757643909195,101.69731471,233.24,233.23,0.03]
[1757643910215,22.87731472,233.24,233.23,0.03]
[1757643910902,23.55731472,233.24,233.23,0.03]
[1757643911609,18.56302326,233.24,233.23,0.03]
[1757643911815,23.55731472,233.24,233.23,0.03]
[1757643913238,60.20232808,233.24,233.23,0.03]
[1757643913518,13.59559401,233.25,233.23,0.69]
[1757643913718,13.59559401,233.25,233.23,0.03]
[1757643914112,39.59559401,233.24,233.23,0.03]
[1757643915220,43.88302326,233.24,233.23,0.03]
[1757643916928,39.59559401,233.24,233.23,0.03]
[1757643917445,43.88302326,233.24,233.23,0.03]
[1757643918243,39.59559401,233.24,233.23,0.03]
[1757643918522,43.88302326,233.24,233.23,0.03]
[1757643919315,39.59559401,233.24,233.23,0.03]
[1757643919708,43.88302326,233.24,233.23,0.03]
[1757643920627,11.39557926,233.31,233.23,0.69]
[1757643920815,26.0,233.27,233.23,0.69]
[1757643921011,21.04917792,233.3,233.23,0.03]
[1757643921012,14.27559401,233.29,233.23,0.03]
[1757643921222,46.53714556,233.29,233.23,0.03]
[1757643921522,43.88227626,233.29,233.23,0.03]
[1757643921735,13.59559401,233.31,233.23,0.69]
[1757643923244,17.88186163,233.31,233.23,0.69]
[1757643923729,79.6,233.3,233.23,0.69]
[1757643923924,13.59559401,233.29,233.23,0.69]
[1757643924123,13.59559401,233.29,233.23,0.03]
[1757643924435,14.27559401,233.29,233.23,0.03]
[1757643924606,1.9748693,233.26,233.23,0.03]
[1757643924812,79.6,233.25,233.23,0.03]
[1757643925014,80.31,233.25,233.23,0.03]
[1757643925215,4.28742925,233.24,233.23,0.03]
[1757643925409,79.6,233.25,233.23,0.03]